[Event "*** Titled Tuesday 3|2 Blitz"]
[Site "Chess.com"]
[Date "2015.08.04"]
[Round "3"]
[White "lukas_111111"]
[Black "stefanodinn"]
[Result "0-1"]
[WhiteElo "2202"]
[BlackElo "2130"]
[TimeControl "180+2"]
[EndTime "12:09:09 PDT"]
[Termination "stefanodinn won on time"]

1. e4 {[%clk 0:03:01.9]} 1... c5 {[%clk 0:02:58.5]} 2. Nf3 {[%clk 0:03:00.8]}
2... d6 {[%clk 0:02:59.1]} 3. d4 {[%clk 0:03:00.4]} 3... cxd4 {[%clk 0:03:00.1]}
4. Nxd4 {[%clk 0:03:01.8]} 4... Nf6 {[%clk 0:03:01.1]} 5. Nc3 {[%clk 0:03:03.1]}
5... a6 {[%clk 0:03:01.6]} 6. Bc4 {[%clk 0:03:03.3]} 6... e6 {[%clk 0:03:01.6]}
7. Bb3 {[%clk 0:03:03.9]} 7... b5 {[%clk 0:03:02.3]} 8. O-O {[%clk 0:03:00.4]}
8... Be7 {[%clk 0:02:58.6]} 9. Qf3 {[%clk 0:02:58.5]} 9... Qc7 {[%clk
0:02:58.4]} 10. a3 {[%clk 0:02:48.3]} 10... O-O {[%clk 0:02:57.2]} 11. Qg3
{[%clk 0:02:48.8]} 11... Bd7 {[%clk 0:02:47.2]} 12. Bh6 {[%clk 0:02:48.3]} 12...
Ne8 {[%clk 0:02:47.7]} 13. Bg5 {[%clk 0:02:28.2]} 13... Bxg5 {[%clk 0:02:43.1]}
14. Qxg5 {[%clk 0:02:28.9]} 14... Nc6 {[%clk 0:02:43]} 15. Nxc6 {[%clk
0:02:29.2]} 15... Bxc6 {[%clk 0:02:43.1]} 16. Rad1 {[%clk 0:02:30.4]} 16... Nf6
{[%clk 0:02:40.4]} 17. Qf4 {[%clk 0:02:28.6]} 17... Rfd8 {[%clk 0:02:34.9]} 18.
Rd3 {[%clk 0:02:27.8]} 18... a5 {[%clk 0:02:30.2]} 19. Rfd1 {[%clk 0:02:14.8]}
19... b4 {[%clk 0:02:12.7]} 20. axb4 {[%clk 0:01:46.8]} 20... axb4 {[%clk
0:02:12.3]} 21. Na2 {[%clk 0:01:47.1]} 21... e5 {[%clk 0:02:01.6]} 22. Qd2
{[%clk 0:01:28.3]} 22... Bxe4 {[%clk 0:01:25.7]} 23. Rxd6 {[%clk 0:01:27.3]}
23... Rxd6 {[%clk 0:01:26.4]} 24. Qxd6 {[%clk 0:01:26.6]} 24... Qxd6 {[%clk
0:01:27.3]} 25. Rxd6 {[%clk 0:01:26.9]} 25... Kf8 {[%clk 0:01:27.9]} 26. Rd2
{[%clk 0:01:11.9]} 26... Bd5 {[%clk 0:01:11]} 27. Rxd5 {[%clk 0:00:56.3]} 27...
Nxd5 {[%clk 0:01:10]} 28. Bxd5 {[%clk 0:00:56.8]} 28... Ra5 {[%clk 0:01:08.2]}
29. Bb3 {[%clk 0:00:52.8]} 29... Ke7 {[%clk 0:01:04.8]} 30. Kf1 {[%clk
0:00:53.7]} 30... Rb5 {[%clk 0:01:02.9]} 31. Ke2 {[%clk 0:00:53.1]} 31... f5
{[%clk 0:01:01.2]} 32. Bc4 {[%clk 0:00:49.6]} 32... Rb6 {[%clk 0:00:57.5]} 33.
f3 {[%clk 0:00:49.9]} 33... Kd6 {[%clk 0:00:58.2]} 34. Bg8 {[%clk 0:00:48.1]}
34... h6 {[%clk 0:00:53.6]} 35. Nc1 {[%clk 0:00:41.9]} 35... Rc6 {[%clk
0:00:52.2]} 36. Bb3 {[%clk 0:00:42]} 36... e4 {[%clk 0:00:50.3]} 37. fxe4 {[%clk
0:00:41.9]} 37... fxe4 {[%clk 0:00:51.2]} 38. Ke3 {[%clk 0:00:33.4]} 38... Ke5
{[%clk 0:00:52]} 39. Ne2 {[%clk 0:00:34.3]} 39... Rg6 {[%clk 0:00:45.8]} 40. Nf4
{[%clk 0:00:33.9]} 40... Rf6 {[%clk 0:00:40.1]} 41. Nh5 {[%clk 0:00:17.7]} 41...
Rg6 {[%clk 0:00:39.3]} 42. Nf4 {[%clk 0:00:18.6]} 42... Rf6 {[%clk 0:00:39.2]}
43. Nh5 {[%clk 0:00:17.4]} 43... Rg6 {[%clk 0:00:39.2]} 44. Ng3 {[%clk
0:00:18.2]} 44... h5 {[%clk 0:00:37.8]} 45. Bf7 {[%clk 0:00:18.6]} 45... Rc6
{[%clk 0:00:36.3]} 46. Bb3 {[%clk 0:00:12.3]} 46... Rg6 {[%clk 0:00:36.8]} 47.
Bf7 {[%clk 0:00:12.1]} 47... Rc6 {[%clk 0:00:36.1]} 48. Bb3 {[%clk 0:00:12.4]}
48... Rg6 {[%clk 0:00:36.8]} 49. Nxh5 {[%clk 0:00:13.2]} 49... Rxg2 {[%clk
0:00:36.6]} 50. h3 {[%clk 0:00:14]} 50... g5 {[%clk 0:00:33.7]} 51. Ba4 {[%clk
0:00:11]} 51... Rh2 {[%clk 0:00:32.4]} 52. Ng3 {[%clk 0:00:10.6]} 52... Rxh3
{[%clk 0:00:32.1]} 53. Kf2 {[%clk 0:00:11.6]} 53... Kf4 {[%clk 0:00:31.2]} 54.
Ne2+ {[%clk 0:00:10.3]} 54... Ke5 {[%clk 0:00:31.8]} 55. Kg2 {[%clk 0:00:07.1]}
55... Rh7 {[%clk 0:00:26.4]} 56. Kg3 {[%clk 0:00:03.3]} 56... Ra7 {[%clk
0:00:25.5]} 57. Bb3 {[%clk 0:00:03.3]} 57... Rh7 {[%clk 0:00:21]} 58. Kg4 {[%clk
0:00:04.1]} 58... Kf6 {[%clk 0:00:21.4]} 59. Kg3 {[%clk 0:00:02.4]} 59... Rh4
{[%clk 0:00:21.8]} 0-1

[Event "*** Titled Tuesday 3|2 Blitz"]
[Site "Chess.com"]
[Date "2015.08.04"]
[Round "3"]
[White "armago"]
[Black "WanderingPuppet"]
[Result "1/2-1/2"]
[WhiteElo "2051"]
[BlackElo "2184"]
[TimeControl "180+2"]
[EndTime "12:09:41 PDT"]
[Termination "Game drawn by agreement"]

1. d4 {[%clk 0:03:01.9]} 1... Nf6 {[%clk 0:03:00.5]} 2. c4 {[%clk 0:03:02.8]}
2... g6 {[%clk 0:03:01.2]} 3. Nc3 {[%clk 0:03:03.6]} 3... Bg7 {[%clk 0:03:02.9]}
4. e4 {[%clk 0:03:04.7]} 4... d6 {[%clk 0:03:04.6]} 5. Bd3 {[%clk 0:03:05.4]}
5... O-O {[%clk 0:03:06.2]} 6. Nge2 {[%clk 0:03:06.8]} 6... Nc6 {[%clk
0:03:07.8]} 7. O-O {[%clk 0:03:06.8]} 7... e5 {[%clk 0:03:09.4]} 8. d5 {[%clk
0:03:07]} 8... Nd4 {[%clk 0:03:10.8]} 9. Bg5 {[%clk 0:03:07]} 9... h6 {[%clk
0:03:10.2]} 10. Be3 {[%clk 0:03:03.9]} 10... Ng4 {[%clk 0:03:07.5]} 11. Bd2
{[%clk 0:03:04.9]} 11... f5 {[%clk 0:02:59]} 12. exf5 {[%clk 0:03:00.5]} 12...
gxf5 {[%clk 0:03:00.9]} 13. h3 {[%clk 0:02:51]} 13... Nf6 {[%clk 0:02:53.9]} 14.
Nxd4 {[%clk 0:02:50.4]} 14... exd4 {[%clk 0:02:55.8]} 15. Ne2 {[%clk 0:02:51.1]}
15... Ne4 {[%clk 0:02:53.6]} 16. Nf4 {[%clk 0:02:43.5]} 16... Kh7 {[%clk
0:02:46.1]} 17. Re1 {[%clk 0:02:30.5]} 17... Qh4 {[%clk 0:02:41.7]} 18. Bxe4
{[%clk 0:02:13.7]} 18... fxe4 {[%clk 0:02:43.6]} 19. Rxe4 {[%clk 0:02:03.2]}
19... Bf5 {[%clk 0:02:41.8]} 20. g3 {[%clk 0:02:04.6]} 20... Qf6 {[%clk
0:02:25.3]} 21. Re1 {[%clk 0:01:53.9]} 21... Rae8 {[%clk 0:02:20.3]} 22. Qf3
{[%clk 0:01:44.4]} 22... Bxh3 {[%clk 0:02:10.7]} 23. Kh2 {[%clk 0:01:30.8]}
23... Qf5 {[%clk 0:01:42.8]} 24. Rxe8 {[%clk 0:00:54.9]} 24... Rxe8 {[%clk
0:01:44.7]} 25. Re1 {[%clk 0:00:50.6]} 25... Bg4 {[%clk 0:01:38.3]} 26. Qd3
{[%clk 0:00:46.7]} 26... Rxe1 {[%clk 0:01:30.2]} 27. Bxe1 {[%clk 0:00:45.2]}
27... Qxd3 {[%clk 0:01:29.5]} 28. Nxd3 {[%clk 0:00:45.3]} 28... Be2 {[%clk
0:01:30.3]} 29. Nf4 {[%clk 0:00:39.2]} 29... Bxc4 {[%clk 0:01:29]} 30. b3 {[%clk
0:00:40.7]} 30... Ba6 {[%clk 0:01:22.2]} 31. Ne6 {[%clk 0:00:40.2]} 31... Be2
{[%clk 0:01:07.4]} 32. Nxc7 {[%clk 0:00:29]} 32... d3 {[%clk 0:00:53.6]} 33. Bd2
{[%clk 0:00:28.6]} 33... Bf3 {[%clk 0:00:33.6]} 34. Nb5 {[%clk 0:00:23.1]} 34...
Be5 {[%clk 0:00:25.4]} 35. Nxa7 {[%clk 0:00:13.9]} 35... Bxd5 {[%clk 0:00:17.8]}
36. f4 {[%clk 0:00:14.6]} 36... Bf6 {[%clk 0:00:11.8]} 37. Nc8 {[%clk
0:00:11.8]} 37... Bf3 {[%clk 0:00:09.8]} 38. Nxd6 {[%clk 0:00:12.4]} 38... Bb2
{[%clk 0:00:11]} 39. Nc4 {[%clk 0:00:13.2]} 39... Bd4 {[%clk 0:00:10.7]} 40. Ne5
{[%clk 0:00:13.9]} 40... Bxe5 {[%clk 0:00:06.7]} 41. fxe5 {[%clk 0:00:14.4]}
41... h5 {[%clk 0:00:08.4]} 42. Kh3 {[%clk 0:00:14.4]} 42... Kg6 {[%clk
0:00:09.5]} 43. Kh4 {[%clk 0:00:15.4]} 43... Kf5 {[%clk 0:00:10.4]} 44. Bf4
{[%clk 0:00:15]} 44... Ke6 {[%clk 0:00:06.9]} 45. Kg5 {[%clk 0:00:14]} 45... Bd1
{[%clk 0:00:07.9]} 46. Kg6 {[%clk 0:00:13]} 46... Be2 {[%clk 0:00:06.2]} 47. a3
{[%clk 0:00:13]} 47... b5 {[%clk 0:00:07.2]} 48. a4 {[%clk 0:00:13.3]} 48...
bxa4 {[%clk 0:00:08.6]} 49. bxa4 {[%clk 0:00:14.1]} 49... d2 {[%clk 0:00:08.3]}
50. Bxd2 {[%clk 0:00:13.4]} 50... Kxe5 {[%clk 0:00:09.9]} 51. a5 {[%clk
0:00:14.6]} 51... Ke6 {[%clk 0:00:08.7]} 52. Be3 {[%clk 0:00:13.7]} 52... Ke7
{[%clk 0:00:09.5]} 53. Kg5 {[%clk 0:00:13.9]} 53... Kf7 {[%clk 0:00:10]} 54. Kf5
{[%clk 0:00:15.2]} 54... Ke7 {[%clk 0:00:08.5]} 55. Ke5 {[%clk 0:00:15.3]} 55...
Kd7 {[%clk 0:00:07.9]} 56. Bd4 {[%clk 0:00:15.7]} 56... Kc7 {[%clk 0:00:08.7]}
57. Kd5 {[%clk 0:00:15.3]} 57... Kb7 {[%clk 0:00:09]} 58. Kc5 {[%clk 0:00:15.9]}
58... Ka6 {[%clk 0:00:10.2]} 59. Bc3 {[%clk 0:00:14.4]} 59... Bd1 {[%clk
0:00:10.4]} 60. Kc6 {[%clk 0:00:15]} 60... Be2 {[%clk 0:00:11.2]} 61. Kd6 {[%clk
0:00:15.1]} 61... Bd1 {[%clk 0:00:12.4]} 62. Ke5 {[%clk 0:00:16.3]} 62... Be2
{[%clk 0:00:13.6]} 63. Kf5 {[%clk 0:00:17.3]} 63... Bd1 {[%clk 0:00:15.1]} 64.
Kg5 {[%clk 0:00:18.3]} 64... Bg4 {[%clk 0:00:16.2]} 65. Kh4 {[%clk 0:00:17.8]}
65... Kb5 {[%clk 0:00:17.2]} 66. Kg5 {[%clk 0:00:17.9]} 66... Ka6 {[%clk
0:00:19.1]} 67. Kh4 {[%clk 0:00:16.9]} 67... Bd1 {[%clk 0:00:19.6]} 68. Kg5
{[%clk 0:00:17.6]} 68... Bg4 {[%clk 0:00:21.5]} 69. Kf4 {[%clk 0:00:18.5]} 69...
Bd1 {[%clk 0:00:23.4]} 70. Ke3 {[%clk 0:00:19.8]} 70... Bg4 {[%clk 0:00:25.3]}
71. Kf2 {[%clk 0:00:21.1]} 71... Kb5 {[%clk 0:00:26.2]} 72. Ke1 {[%clk 0:00:22]}
72... Ka6 {[%clk 0:00:28.1]} 73. Bb4 {[%clk 0:00:22.5]} 73... Kb5 {[%clk
0:00:28.7]} 74. Bd2 {[%clk 0:00:24.2]} 74... Ka6 {[%clk 0:00:30.2]} 1/2-1/2

[Event "*** Titled Tuesday 3|2 Blitz"]
[Site "Chess.com"]
[Date "2015.08.04"]
[Round "3"]
[White "GregShahade"]
[Black "Fh2411"]
[Result "1/2-1/2"]
[WhiteElo "2307"]
[BlackElo "2162"]
[TimeControl "180+2"]
[EndTime "12:10:28 PDT"]
[Termination "Game drawn by repetition"]

1. c4 {[%clk 0:03:01.9]} 1... c6 {[%clk 0:03:00]} 2. Nf3 {[%clk 0:02:59.7]} 2...
d5 {[%clk 0:03:00.1]} 3. e3 {[%clk 0:02:59.8]} 3... Nf6 {[%clk 0:02:58.9]} 4. b3
{[%clk 0:03:00.6]} 4... Bg4 {[%clk 0:02:58.5]} 5. Bb2 {[%clk 0:03:00.5]} 5... e6
{[%clk 0:02:59]} 6. h3 {[%clk 0:03:00.9]} 6... Bh5 {[%clk 0:02:58.6]} 7. Be2
{[%clk 0:03:00.7]} 7... Nbd7 {[%clk 0:02:59.3]} 8. O-O {[%clk 0:03:00.9]} 8...
Bd6 {[%clk 0:02:59.9]} 9. d3 {[%clk 0:03:00.3]} 9... O-O {[%clk 0:02:58.2]} 10.
Nbd2 {[%clk 0:03:00.9]} 10... Re8 {[%clk 0:02:57]} 11. Rc1 {[%clk 0:02:56.9]}
11... h6 {[%clk 0:02:56.6]} 12. Re1 {[%clk 0:02:57.1]} 12... Qe7 {[%clk
0:02:55.8]} 13. Qc2 {[%clk 0:02:57.9]} 13... Ba3 {[%clk 0:02:54.4]} 14. Rb1
{[%clk 0:02:44.5]} 14... Bxb2 {[%clk 0:02:54.7]} 15. Qxb2 {[%clk 0:02:44.6]}
15... e5 {[%clk 0:02:51.9]} 16. Bf1 {[%clk 0:02:39.1]} 16... Bxf3 {[%clk
0:02:40]} 17. Nxf3 {[%clk 0:02:37.3]} 17... Rad8 {[%clk 0:02:08.1]} 18. cxd5
{[%clk 0:02:29]} 18... Nxd5 {[%clk 0:02:02.6]} 19. b4 {[%clk 0:02:18.1]} 19...
a6 {[%clk 0:01:41.3]} 20. a3 {[%clk 0:02:17.6]} 20... N7b6 {[%clk 0:01:27.5]}
21. Qc2 {[%clk 0:02:16.3]} 21... Qd6 {[%clk 0:01:22.8]} 22. Nd2 {[%clk
0:02:14.3]} 22... f5 {[%clk 0:01:13]} 23. Nc4 {[%clk 0:02:15.1]} 23... Qg6
{[%clk 0:00:55.3]} 24. Qb2 {[%clk 0:02:07.5]} 24... Nxc4 {[%clk 0:00:49.6]} 25.
dxc4 {[%clk 0:02:08.2]} 25... Nf6 {[%clk 0:00:51.2]} 26. Rbd1 {[%clk 0:02:00.5]}
26... Rxd1 {[%clk 0:00:38.5]} 27. Rxd1 {[%clk 0:02:01.1]} 27... f4 {[%clk
0:00:38.4]} 28. exf4 {[%clk 0:01:54.8]} 28... exf4 {[%clk 0:00:38.9]} 29. Be2
{[%clk 0:01:48.5]} 29... Qg5 {[%clk 0:00:34.6]} 30. Bf3 {[%clk 0:01:43.1]} 30...
Qe5 {[%clk 0:00:29.2]} 31. Qd2 {[%clk 0:01:39.4]} 31... Ne4 {[%clk 0:00:22.5]}
32. Qd7 {[%clk 0:01:29.9]} 32... Ng5 {[%clk 0:00:21.4]} 33. Bh5 {[%clk
0:01:20.6]} 33... Re7 {[%clk 0:00:18.7]} 34. Qc8+ {[%clk 0:01:20.8]} 34... Kh7
{[%clk 0:00:19.2]} 35. Rd8 {[%clk 0:01:21]} 35... g6 {[%clk 0:00:19.6]} 36. Be2
{[%clk 0:01:18.1]} 36... f3 {[%clk 0:00:17.8]} 37. gxf3 {[%clk 0:01:06.2]} 37...
Nxh3+ {[%clk 0:00:15]} 38. Qxh3 {[%clk 0:01:03.4]} 38... Qxe2 {[%clk 0:00:15.9]}
39. Rd7 {[%clk 0:00:40.5]} 39... Qe5 {[%clk 0:00:13.5]} 40. Rxe7+ {[%clk
0:00:33.3]} 40... Qxe7 {[%clk 0:00:13.6]} 41. c5 {[%clk 0:00:34.5]} 41... Kg7
{[%clk 0:00:13.5]} 42. Qg4 {[%clk 0:00:34]} 42... Qf7 {[%clk 0:00:14.2]} 43.
Qd4+ {[%clk 0:00:34.2]} 43... Kh7 {[%clk 0:00:15.4]} 44. Kg2 {[%clk 0:00:33.5]}
44... h5 {[%clk 0:00:16.3]} 45. Qe5 {[%clk 0:00:34.2]} 45... Kh6 {[%clk
0:00:16.8]} 46. Qe3+ {[%clk 0:00:33.7]} 46... g5 {[%clk 0:00:16.7]} 47. Qe5
{[%clk 0:00:34.2]} 47... h4 {[%clk 0:00:16.9]} 48. Qh8+ {[%clk 0:00:33.9]} 48...
Kg6 {[%clk 0:00:18.5]} 49. Qe5 {[%clk 0:00:33.9]} 49... Qd7 {[%clk 0:00:19.2]}
50. Qe4+ {[%clk 0:00:32.8]} 50... Kh6 {[%clk 0:00:19.1]} 51. Qe5 {[%clk
0:00:29.8]} 51... Kg6 {[%clk 0:00:19.2]} 52. Qe4+ {[%clk 0:00:26.1]} 52... Kh6
{[%clk 0:00:20]} 53. Qe3 {[%clk 0:00:26.9]} 53... Kg6 {[%clk 0:00:20.5]} 54. Qe5
{[%clk 0:00:27.6]} 54... Qf7 {[%clk 0:00:19.3]} 55. Qd6+ {[%clk 0:00:28]} 55...
Kh5 {[%clk 0:00:19.1]} 56. Qd8 {[%clk 0:00:25]} 56... Kg6 {[%clk 0:00:19.5]} 57.
Qd6+ {[%clk 0:00:24.2]} 57... Kh5 {[%clk 0:00:19.7]} 58. Qe5 {[%clk 0:00:24.1]}
58... Kg6 {[%clk 0:00:20.2]} 59. Qe4+ {[%clk 0:00:24.6]} 59... Kh6 {[%clk
0:00:19.2]} 60. Qg4 {[%clk 0:00:25.4]} 60... Kg6 {[%clk 0:00:20.1]} 61. Qc8
{[%clk 0:00:25]} 61... Kg7 {[%clk 0:00:19.9]} 62. Qd8 {[%clk 0:00:23.6]} 62...
Kg6 {[%clk 0:00:20.9]} 63. Qd4 {[%clk 0:00:24.3]} 63... Kh6 {[%clk 0:00:21.4]}
64. Qd6+ {[%clk 0:00:25.2]} 64... Kh5 {[%clk 0:00:21.7]} 65. a4 {[%clk
0:00:26.5]} 65... Qg7 {[%clk 0:00:13.3]} 66. Qe6 {[%clk 0:00:21.2]} 66... Qc7
{[%clk 0:00:11.9]} 67. Qe8+ {[%clk 0:00:16.3]} 67... Kh6 {[%clk 0:00:12]} 68.
Qf8+ {[%clk 0:00:17]} 68... Kg6 {[%clk 0:00:12.9]} 69. Qg8+ {[%clk 0:00:18.1]}
69... Kf6 {[%clk 0:00:14]} 70. Qf8+ {[%clk 0:00:19]} 70... Qf7 {[%clk
0:00:13.8]} 71. Qd6+ {[%clk 0:00:14.6]} 71... Qe6 {[%clk 0:00:13.3]} 72. Qd8+
{[%clk 0:00:14.6]} 72... Qe7 {[%clk 0:00:14.6]} 73. Qd4+ {[%clk 0:00:14.7]}
73... Kg6 {[%clk 0:00:15.6]} 74. Qd3+ {[%clk 0:00:11.6]} 74... Kf6 {[%clk
0:00:16.1]} 75. Qd4+ {[%clk 0:00:12.6]} 75... Kg6 {[%clk 0:00:17.1]} 76. Qd3+
{[%clk 0:00:12.8]} 76... Kf6 {[%clk 0:00:18.3]} 77. Qd4+ {[%clk 0:00:13.9]}
77... Kg6 {[%clk 0:00:19]} 78. Qd3+ {[%clk 0:00:15.2]} 1/2-1/2

[Event "*** Titled Tuesday 3|2 Blitz"]
[Site "Chess.com"]
[Date "2015.08.04"]
[Round "3"]
[White "ChessMavenYeti"]
[Black "HZMC92"]
[Result "0-1"]
[WhiteElo "2035"]
[BlackElo "2274"]
[TimeControl "180+2"]
[EndTime "12:12:10 PDT"]
[Termination "HZMC92 won on time"]

1. d4 {[%clk 0:03:01.9]} 1... d5 {[%clk 0:03:00.6]} 2. c4 {[%clk 0:03:02.8]}
2... e6 {[%clk 0:03:01.9]} 3. Nf3 {[%clk 0:03:02.3]} 3... c6 {[%clk 0:03:02.9]}
4. e3 {[%clk 0:03:00.2]} 4... f5 {[%clk 0:03:03.6]} 5. b3 {[%clk 0:02:57.2]}
5... Bd6 {[%clk 0:03:02.4]} 6. Bd3 {[%clk 0:02:53.7]} 6... Nh6 {[%clk
0:03:00.6]} 7. O-O {[%clk 0:02:54.5]} 7... Qe7 {[%clk 0:03:01.2]} 8. Bb2 {[%clk
0:02:51.6]} 8... O-O {[%clk 0:03:01.8]} 9. Qc1 {[%clk 0:02:48.1]} 9... Nd7
{[%clk 0:03:00.7]} 10. Ba3 {[%clk 0:02:48.7]} 10... Rf6 {[%clk 0:03:01.7]} 11.
Bxd6 {[%clk 0:02:48.9]} 11... Qxd6 {[%clk 0:03:02.9]} 12. Nbd2 {[%clk
0:02:46.7]} 12... Nf7 {[%clk 0:03:02]} 13. cxd5 {[%clk 0:02:47]} 13... exd5
{[%clk 0:03:02.9]} 14. Qc2 {[%clk 0:02:44.8]} 14... g5 {[%clk 0:02:58.9]} 15.
Bxf5 {[%clk 0:02:43.4]} 15... Nf8 {[%clk 0:02:51.5]} 16. Bxc8 {[%clk 0:02:39]}
16... Rxc8 {[%clk 0:02:53.4]} 17. e4 {[%clk 0:02:37.3]} 17... Qd7 {[%clk
0:02:45.1]} 18. e5 {[%clk 0:02:37.3]} 18... Rh6 {[%clk 0:02:46.1]} 19. Qd3
{[%clk 0:02:30.3]} 19... g4 {[%clk 0:02:46]} 20. Ne1 {[%clk 0:02:29.4]} 20...
Ne6 {[%clk 0:02:47.1]} 21. f3 {[%clk 0:02:24.1]} 21... Nfg5 {[%clk 0:02:30.2]}
22. fxg4 {[%clk 0:02:22.8]} 22... c5 {[%clk 0:02:27]} 23. Nef3 {[%clk
0:02:17.1]} 23... cxd4 {[%clk 0:02:18.4]} 24. Nxd4 {[%clk 0:02:15.3]} 24... Nxd4
{[%clk 0:02:07.1]} 25. Qxd4 {[%clk 0:02:17.2]} 25... Rc2 {[%clk 0:02:08.4]} 26.
Rac1 {[%clk 0:02:15]} 26... Ne6 {[%clk 0:02:01.1]} 27. Qe3 {[%clk 0:02:10]}
27... Rxc1 {[%clk 0:02:01.1]} 28. Rxc1 {[%clk 0:02:09.8]} 28... Rg6 {[%clk
0:02:02.2]} 29. h3 {[%clk 0:02:09.9]} 29... h5 {[%clk 0:01:58.5]} 30. gxh5
{[%clk 0:02:09.7]} 30... Rg5 {[%clk 0:01:57.9]} 31. g4 {[%clk 0:02:08.3]} 31...
d4 {[%clk 0:01:54.8]} 32. Qe4 {[%clk 0:02:03.9]} 32... b6 {[%clk 0:01:46.6]} 33.
Nf3 {[%clk 0:02:04.3]} 33... Nc5 {[%clk 0:01:38.4]} 34. Qxd4 {[%clk 0:02:02.2]}
34... Qxd4+ {[%clk 0:01:39]} 35. Nxd4 {[%clk 0:02:03.3]} 35... Rxe5 {[%clk
0:01:39.9]} 36. Nc6 {[%clk 0:02:04]} 36... Re3 {[%clk 0:01:38.7]} 37. Kg2 {[%clk
0:01:59]} 37... Re2+ {[%clk 0:01:39.6]} 38. Kg3 {[%clk 0:02:00.2]} 38... Rxa2
{[%clk 0:01:37.8]} 39. b4 {[%clk 0:02:01.2]} 39... Ra3+ {[%clk 0:01:33.5]} 40.
Kh4 {[%clk 0:01:57.2]} 40... Nd3 {[%clk 0:01:32.6]} 41. Rd1 {[%clk 0:01:50.2]}
41... Nf2 {[%clk 0:01:28.1]} 42. Rd8+ {[%clk 0:01:50.8]} 42... Kf7 {[%clk
0:01:28.5]} 43. Rd7+ {[%clk 0:01:50.7]} 43... Ke6 {[%clk 0:01:26.9]} 44. Rxa7
{[%clk 0:01:50.7]} 44... Rc3 {[%clk 0:01:25.4]} 45. Nd4+ {[%clk 0:01:48.7]}
45... Kf6 {[%clk 0:01:26.6]} 46. g5+ {[%clk 0:01:49.1]} 46... Ke5 {[%clk
0:01:23.1]} 47. g6 {[%clk 0:01:45.3]} 47... Rxh3+ {[%clk 0:01:14.4]} 48. Kg5
{[%clk 0:01:45.8]} 48... Kxd4 {[%clk 0:01:14.5]} 49. g7 {[%clk 0:01:43.1]} 49...
Ke5 {[%clk 0:01:13.5]} 50. Re7+ {[%clk 0:01:41.1]} 50... Kd6 {[%clk 0:01:13.2]}
51. Re6+ {[%clk 0:01:37.7]} 51... Kd7 {[%clk 0:01:09.3]} 52. Re2 {[%clk
0:01:36.6]} 52... Rg3+ {[%clk 0:01:08.7]} 53. Kh6 {[%clk 0:01:32.6]} 53... Ng4+
{[%clk 0:01:09.7]} 54. Kh7 {[%clk 0:01:33.5]} 54... Nf6+ {[%clk 0:01:10.7]} 55.
Kh8 {[%clk 0:01:34.6]} 55... Rh3 {[%clk 0:01:05.7]} 56. Re5 {[%clk 0:01:34.1]}
56... Nxh5 {[%clk 0:01:02.5]} 57. g8=Q {[%clk 0:01:29]} 57... Nf6+ {[%clk
0:01:03.3]} 58. Kg7 {[%clk 0:01:29.4]} 58... Nxg8 {[%clk 0:01:02.9]} 59. Kxg8
{[%clk 0:01:31.3]} 59... Kd6 {[%clk 0:00:57.4]} 60. Rg5 {[%clk 0:01:26.1]} 60...
Rd3 {[%clk 0:00:49.8]} 61. Kf7 {[%clk 0:01:24.2]} 61... Rd5 {[%clk 0:00:44.7]}
62. Rg6+ {[%clk 0:01:24.3]} 62... Kc7 {[%clk 0:00:46]} 63. Ke7 {[%clk
0:01:19.8]} 63... Re5+ {[%clk 0:00:43.1]} 64. Kf6 {[%clk 0:01:19.9]} 64... Rb5
{[%clk 0:00:42.7]} 65. Ke6 {[%clk 0:01:19.2]} 65... Rxb4 {[%clk 0:00:42]} 66.
Kd5 {[%clk 0:01:20.7]} 66... Rb1 {[%clk 0:00:39.9]} 67. Kc4 {[%clk 0:01:20.1]}
67... Rc1+ {[%clk 0:00:39.2]} 68. Kb5 {[%clk 0:01:20.6]} 68... Rc5+ {[%clk
0:00:40.2]} 69. Kb4 {[%clk 0:01:22]} 69... Kb7 {[%clk 0:00:40]} 70. Rf6 {[%clk
0:01:21.7]} 70... Ka6 {[%clk 0:00:41]} 71. Rg6 {[%clk 0:01:22.9]} 71... Rb5+
{[%clk 0:00:41.3]} 72. Ka4 {[%clk 0:01:23.7]} 72... Rf5 {[%clk 0:00:42.1]} 73.
Kb4 {[%clk 0:01:24.3]} 73... Rf4+ {[%clk 0:00:43.2]} 74. Kb3 {[%clk 0:01:23.8]}
74... Ka5 {[%clk 0:00:44.5]} 75. Rg5+ {[%clk 0:01:24.7]} 75... b5 {[%clk
0:00:45.9]} 76. Ka3 {[%clk 0:01:25.6]} 76... Rf3+ {[%clk 0:00:47.1]} 77. Kb2
{[%clk 0:01:26]} 77... Ka4 {[%clk 0:00:48.8]} 78. Rg4+ {[%clk 0:01:27.3]} 78...
b4 {[%clk 0:00:49.8]} 79. Rg8 {[%clk 0:01:25.4]} 79... Rf2+ {[%clk 0:00:50.4]}
80. Kc1 {[%clk 0:01:18.3]} 80... Ka3 {[%clk 0:00:47.4]} 81. Rg3+ {[%clk
0:01:16.1]} 81... b3 {[%clk 0:00:48.3]} 82. Rg8 {[%clk 0:01:17]} 82... Rf1+
{[%clk 0:00:49.5]} 83. Kd2 {[%clk 0:01:17.9]} 83... Ka2 {[%clk 0:00:36.3]} 84.
Kc3 {[%clk 0:01:18]} 84... Rc1+ {[%clk 0:00:36.1]} 85. Kd2 {[%clk 0:01:18]}
85... Rc7 {[%clk 0:00:36.8]} 86. Rb8 {[%clk 0:01:15.6]} 86... b2 {[%clk
0:00:33.7]} 87. Ra8+ {[%clk 0:01:15.3]} 87... Kb1 {[%clk 0:00:34.7]} 88. Rb8
{[%clk 0:01:16.6]} 88... Rd7+ {[%clk 0:00:35.7]} 89. Kc3 {[%clk 0:01:18]} 89...
Rc7+ {[%clk 0:00:36.3]} 90. Kd2 {[%clk 0:01:16.5]} 90... Rc4 {[%clk 0:00:32.3]}
91. Ra8 {[%clk 0:01:17.3]} 91... Rd4+ {[%clk 0:00:31.2]} 92. Ke3 {[%clk
0:01:06.1]} 92... Rc4 {[%clk 0:00:25.7]} 93. Kd2 {[%clk 0:01:06.9]} 93... Rc2+
{[%clk 0:00:25.3]} 94. Kd1 {[%clk 0:01:08]} 94... Rc4 {[%clk 0:00:26.1]} 95. Kd2
{[%clk 0:01:07.7]} 95... Rd4+ {[%clk 0:00:27.3]} 96. Ke3 {[%clk 0:01:03.1]}
96... Kc2 {[%clk 0:00:28.5]} 97. Rc8+ {[%clk 0:00:55.5]} 97... Kd1 {[%clk
0:00:27.5]} 98. Kxd4 {[%clk 0:00:07.8]} 98... b1=Q {[%clk 0:00:27.6]} 99. Rc6
{[%clk 0:00:05.1]} 99... Qb4+ {[%clk 0:00:25.8]} 100. Kd5 {[%clk 0:00:05.2]}
100... Kd2 {[%clk 0:00:27]} 101. Ke6 {[%clk 0:00:05]} 101... Ke3 {[%clk
0:00:25.5]} 102. Kd7 {[%clk 0:00:06.2]} 102... Ke4 {[%clk 0:00:25.7]} 103. Kd8
{[%clk 0:00:07.5]} 103... Qb8+ {[%clk 0:00:22.1]} 104. Kd7 {[%clk 0:00:03.4]}
104... Kd5 {[%clk 0:00:22.2]} 0-1